fUST/lending_fUST_20250227
["ID","MTS","AMOUNT","RATE_DAILY","PERIOD"]
[354706370,1740633046457,-545.34,0.00047123,120]
[354706371,1740633046467,-1734.3,0.00047123,120]
[354706372,1740633046476,-500.0,0.00047123,120]
[354706373,1740633046485,-500.0,0.00047123,120]
[354706374,1740633046497,-829.3,0.00047123,120]
[354706375,1740633046506,-1171.18,0.00047123,120]
[354706376,1740633046515,-2007.03,0.00047123,120]
[354706377,1740633046525,-592.64,0.00047123,120]
[354706378,1740633046534,-500.0,0.00047123,15]
[354706379,1740633046543,-725.62,0.00047123,120]
[354706380,1740633046552,-695.16,0.00047123,120]
[354706381,1740633046562,-500.0,0.00047123,120]
[354706382,1740633046571,-500.0,0.00047123,120]
[354706383,1740633046581,-500.0,0.00047123,120]
[354706384,1740633046591,-930.5,0.00047123,120]
[354706385,1740633046600,-500.0,0.00047123,120]
[354706386,1740633046610,-500.0,0.00047123,120]
[354706387,1740633046620,-500.0,0.00047123,120]
[354706388,1740633046632,-618.08,0.00047123,120]
[354706389,1740633046641,-500.0,0.00047123,120]
[354706390,1740633046651,-1066.42,0.00047123,120]
[354706391,1740633046661,-500.0,0.00047123,120]
[354706392,1740633046672,-710.51,0.00047123,120]
[354706393,1740633046682,-500.0,0.00047123,120]
[354706394,1740633046691,-2385.0,0.00047123,120]
[354706395,1740633046701,-712.13,0.00047123,120]
[354706396,1740633046711,-500.0,0.00047123,120]
[354706397,1740633046720,-623.48,0.00047123,120]
[354706398,1740633046730,-1071.56,0.00047123,120]
[354706399,1740633046739,-500.0,0.00047123,120]
[354706400,1740633046749,-921.25,0.00047123,120]
[354706401,1740633046758,-588.56,0.00047123,120]
[354706402,1740633046768,-263.81400689,0.00047123,120]
[354706403,1740633046777,-500.0,0.00047123,120]
[354706404,1740633046787,-500.0,0.00047123,120]
[354706405,1740633046796,-500.0,0.00047123,120]
[354706406,1740633046805,-500.0,0.00047123,120]
[354706407,1740633046815,-647.5,0.00047123,120]
[354706408,1740633046824,-590.36,0.00047123,120]
[354706409,1740633046833,-500.0,0.00047123,120]
[354706410,1740633046844,-9383.38,0.00047123,120]
[354706411,1740633046854,-660.25,0.00047123,120]
[354706412,1740633046863,-586.5,0.00047123,120]
[354706413,1740633046873,-2346.11,0.00047123,120]
[354706414,1740633046882,-500.0,0.00047123,120]
[354706415,1740633046891,-500.0,0.00047123,120]
[354706416,1740633046901,-1654.66,0.00047123,120]
[354706417,1740633046910,-608.28,0.00047123,120]
[354706418,1740633046920,-500.0,0.00047123,120]
[354706419,1740633046929,-500.0,0.00047123,120]
[354706420,1740633046939,-500.0,0.00047123,120]
[354706421,1740633046948,-2652.62,0.00047123,120]
[354706422,1740633046958,-662.86,0.00047123,120]
[354706423,1740633046967,-528.76,0.00047123,120]
[354706424,1740633046976,-681.66,0.00047123,120]
[354706425,1740633046986,-1106.82,0.00047123,120]
[354706426,1740633046995,-500.0,0.00047123,120]
[354706427,1740633047011,-1661.61,0.00047123,120]
[354706428,1740633047021,-500.0,0.00047123,120]
[354706429,1740633047030,-585.07,0.00047123,30]
[354706430,1740633047040,-1116.89,0.00047123,120]
[354706431,1740633047049,-3063.8,0.00047123,120]
[354706432,1740633047059,-500.0,0.00047123,120]
[354706433,1740633047068,-1919.56,0.00047123,120]
[354706434,1740633047077,-500.0,0.00047123,120]
[354706435,1740633047088,-1218.47,0.00047123,120]
[354706436,1740633047098,-948.39,0.00047123,120]
[354706437,1740633047107,-1212.81,0.00047123,120]
[354706438,1740633047116,-7995.07,0.00047123,120]
[354706439,1740633047126,-26328.55,0.00047123,120]
[354706440,1740633047135,-3782.44,0.00047123,120]
[354706441,1740633047145,-539.67,0.00047123,120]
[354706442,1740633047154,-500.0,0.00047123,120]
[354706443,1740633047163,-9789.87,0.00047123,3]
[354706444,1740633047173,-2073.98,0.00047123,120]
[354706445,1740633047182,-500.0,0.00047123,120]
[354706446,1740633047191,-1128.82,0.00047123,120]
[354706447,1740633047201,-500.0,0.00047123,120]
[354706448,1740633047210,-500.0,0.00047123,120]
[354706449,1740633047220,-733.06,0.00047123,120]
[354706450,1740633047229,-4064.52,0.00047123,120]
[354706451,1740633047238,-1770.06,0.00047123,120]
[354706452,1740633047247,-5683.29,0.00047123,120]
[354706453,1740633047256,-500.0,0.00047123,120]
[354706454,1740633047265,-500.0,0.00047123,120]
[354706455,1740633047275,-500.0,0.00047123,120]
[354706456,1740633047284,-500.0,0.00047123,120]
[354706457,1740633047293,-521.21,0.00047123,120]
[354706458,1740633047303,-1347.84,0.00047123,120]
[354706459,1740633047312,-1000.0,0.00047123,2]
[354706460,1740633047321,-39811.82401196,0.00047123,7]
[354706461,1740633047673,-6213.03,0.00046575,120]
[354706462,1740633047682,-500.0,0.00046575,120]
[354706463,1740633047691,-6213.03,0.00046849,120]
[354706464,1740633047700,-299.52179166,0.00046849,120]
[354706465,1740633047709,-1770.94583377,0.00047123,7]
[354706466,1740633048281,-204.6548897,0.000409,8]
[354706467,1740633048291,-204.65488946,0.0004306,9]
[354706468,1740633048300,-204.65488946,0.0004522,10]
[354706469,1740633048310,-500.0,0.00046575,120]
[354706470,1740633048319,-500.0,0.00046575,120]
[354706471,1740633048329,-195.91511872,0.00046849,120]
[354706472,1740633897650,413.0,0.0003,10]
[354706507,1740634232692,-381.00814737,0.000279,2]
[354706508,1740634232703,-381.00814737,0.000329,2]
[354706509,1740634232712,-381.00814737,0.000379,2]
[354706510,1740634232722,-631.0169963,0.00040295,2]
[354706511,1740634232731,-500.0,0.00041617,2]
[354706512,1740634232741,-16109.7526966,0.00041642,2]
[354706513,1740634232750,-204.65488946,0.000449,10]
[354706514,1740634232761,-172.0,0.00045,90]
[354706515,1740634232770,-247.39429378,0.00045431,2]
[354706516,1740634232780,-1113.965899,0.000456,52]
[354706518,1740634232789,-1000.0,0.000461,52]
[354706520,1740634232798,-247.3919973,0.0004618,4]
[354706522,1740634232808,-157.242,0.0004618,76]
[354706524,1740634232817,-390.3658543,0.00046442,15]
[354706526,1740634232828,-500.0,0.00046573,10]
[354706528,1740634232837,-500.0,0.00046573,7]
[354706530,1740634232847,-500.0,0.00046573,10]
[354706531,1740634232856,-5000.0,0.00046574,120]
[354706532,1740634232867,-500.0,0.00046574,120]
[354706533,1740634232876,-258.04324858,0.00046574,120]
[354706534,1740634232885,-15022.65,0.00046574,120]
[354706535,1740634232894,-500.0,0.00046575,120]
[354706536,1740634232905,-500.0,0.00046575,120]
[354706537,1740634232914,-500.0,0.00046575,120]
[354706538,1740634232923,-500.0,0.00046575,120]
[354706539,1740634232933,-500.0,0.00046575,120]
[354706540,1740634232942,-500.0,0.00046575,120]
[354706541,1740634232951,-500.0,0.00046575,120]
[354706542,1740634232961,-500.0,0.00046575,120]
[354706543,1740634232970,-500.0,0.00046575,120]
[354706544,1740634232979,-500.0,0.00046575,120]
[354706545,1740634232989,-500.0,0.00046575,120]
[354706546,1740634232999,-1114.58,0.00046575,120]
[354706547,1740634233007,-500.0,0.00046575,120]
[354706548,1740634233017,-500.0,0.00046575,120]
[354706549,1740634233026,-500.0,0.00046575,120]
[354706550,1740634233036,-500.0,0.00046575,120]
[354706551,1740634233054,-500.0,0.00046575,120]
[354706552,1740634233066,-500.0,0.00046575,120]
[354706553,1740634233076,-516.51,0.00046575,120]
[354706554,1740634233086,-503.0886522,0.00046575,120]
[354706555,1740634233096,-500.0,0.00046575,120]
[354706556,1740634233106,-243.40557211,0.00046575,120]
[354706569,1740634238425,-256.59442789,0.00046575,120]
[354706570,1740634238435,-500.0,0.00046575,120]
[354706571,1740634238445,-200.0,0.00046575,7]
[354706572,1740634238455,-500.0,0.00046575,120]
[354706573,1740634238464,-500.0,0.00046575,120]
[354706574,1740634238474,-500.0,0.00046575,120]
[354706575,1740634238483,-500.0,0.00046575,120]
[354706576,1740634238493,-500.0,0.00046575,120]
[354706577,1740634238502,-500.0,0.00046575,120]
[354706578,1740634238511,-500.0,0.00046575,120]
[354706580,1740634238521,-500.0,0.00046575,120]
[354706581,1740634238531,-500.0,0.00046575,120]
[354706582,1740634238540,-500.0,0.00046575,120]
[354706583,1740634238550,-500.0,0.00046575,120]
[354706584,1740634238559,-500.0,0.00046575,120]
[354706585,1740634238568,-500.0,0.00046575,120]
[354706586,1740634238578,-500.0,0.00046575,120]
[354706587,1740634238587,-429.57794078,0.00046575,120]
[354706588,1740634238596,-500.0,0.00046575,120]
[354706589,1740634238605,-740.15,0.00046575,120]
[354706590,1740634238615,-500.0,0.00046575,120]
[354706591,1740634238624,-546.8,0.00046575,120]
[354706592,1740634238633,-500.0,0.00046575,120]
[354706593,1740634238643,-500.0,0.00046575,120]
[354706594,1740634238652,-1204.46,0.00046575,120]
[354706595,1740634238661,-500.0,0.00046575,120]
[354706596,1740634238671,-500.0,0.00046575,120]
[354706597,1740634238680,-574.98,0.00046575,120]
[354706598,1740634238690,-664.31,0.00046575,120]
[354706599,1740634238699,-500.0,0.00046575,120]
[354706600,1740634238708,-500.0,0.00046575,120]
[354706601,1740634238717,-500.0,0.00046575,120]
[354706602,1740634238727,-1070.31,0.00046575,120]
[354706603,1740634238736,-500.0,0.00046575,120]
[354706604,1740634238745,-856.2,0.00046575,120]
[354706605,1740634238755,-608.27,0.00046575,120]
[354706606,1740634238764,-500.0,0.00046575,120]
[354706607,1740634238773,-500.0,0.00046575,120]
[354706608,1740634238783,-541.99335899,0.00046575,120]
[354706609,1740634238792,-500.0,0.00046575,120]
[354706610,1740634238802,-500.0,0.00046575,120]
[354706611,1740634238811,-500.0,0.00046575,120]
[354706612,1740634238821,-500.0,0.00046575,120]
[354706613,1740634238834,-500.0,0.00046575,120]
[354706614,1740634238843,-500.0,0.00046575,120]
[354706615,1740634238852,-500.0,0.00046575,120]
[354706616,1740634238863,-500.0,0.00046575,120]
[354706617,1740634238872,-540.82,0.00046575,120]
[354706618,1740634238883,-500.0,0.00046575,120]
[354706619,1740634238893,-500.0,0.00046575,120]
[354706620,1740634238905,-500.0,0.00046575,120]
[354706621,1740634238915,-557.19053306,0.00046575,120]
[354706622,1740634238927,-500.0,0.00046575,120]
[354706623,1740634238936,-484.4099761,0.00046575,120]
[354706624,1740634238945,-500.0,0.00046575,120]
[354706625,1740634238954,-587.18535367,0.00046575,120]
[354706626,1740634238964,-500.0,0.00046575,120]
[354706627,1740634238973,-545.65,0.00046575,120]
[354706628,1740634238983,-500.0,0.00046575,120]
[354706629,1740634238992,-500.0,0.00046575,120]
[354706630,1740634239002,-500.0,0.00046575,120]
[354706631,1740634239011,-537.98,0.00046575,120]
[354706632,1740634239021,-500.0,0.00046575,120]
[354706633,1740634239030,-622.77,0.00046575,120]
[354706634,1740634239039,-500.0,0.00046575,120]
[354706635,1740634239049,-500.0,0.00046575,120]
[354706636,1740634239059,-665.98,0.00046575,120]
[354706637,1740634239068,-500.0,0.00046575,120]
[354706638,1740634239078,-2168.29,0.00046575,120]
[354706639,1740634239088,-542.81,0.00046575,120]
[354706640,1740634239098,-464.20046702,0.00046575,120]
[354706641,1740634239109,-500.0,0.00046575,120]
[354706642,1740634239120,-2179.41,0.00046575,120]
[354706643,1740634239132,-500.0,0.00046575,120]
[354706644,1740634239143,-500.0,0.00046575,120]
[354706645,1740634239156,-500.0,0.00046575,120]
[354706646,1740634239165,-500.0,0.00046575,120]
[354706647,1740634239175,-412.46290697,0.00046575,120]
[354706648,1740634239184,-500.0,0.00046575,120]
[354706649,1740634239193,-501.51940174,0.00046575,120]
[354706650,1740634239202,-500.0,0.00046575,120]
[354706651,1740634239211,-1401.0,0.00046575,120]
[354706652,1740634239220,-500.0,0.00046575,120]
[354706653,1740634239229,-501.70147739,0.00046575,120]
[354706654,1740634239239,-1378.04,0.00046575,120]
[354706655,1740634239248,-2059.23,0.00046575,120]
[354706656,1740634239258,-500.0,0.00046575,120]
[354706657,1740634239266,-500.0,0.00046575,120]
[354706658,1740634239275,-506.37998842,0.00046575,120]
[354706659,1740634239285,-500.0,0.00046575,120]
[354706660,1740634239294,-3056.99,0.00046575,120]
[354706661,1740634239305,-703.26,0.00046575,120]
[354706662,1740634239324,-500.0,0.00046575,120]
[354706663,1740634239335,-513.18,0.00046575,120]
[354706664,1740634239345,-1125.11,0.00046575,120]
[354706665,1740634239354,-500.0,0.00046575,120]
[354706666,1740634239364,-624.15,0.00046575,120]
[354706667,1740634239374,-500.0,0.00046575,120]
[354706668,1740634239384,-927.74,0.00046575,120]
[354706669,1740634239394,-500.0,0.00046575,120]
[354706670,1740634239404,-968.47,0.00046575,120]
[354706671,1740634239413,-500.0,0.00046575,120]
[354706672,1740634239424,-502.48358564,0.00046575,120]
[354706673,1740634239434,-500.0,0.00046575,120]
[354706674,1740634239443,-500.0,0.00046575,120]
[354706675,1740634239454,-500.0,0.00046575,120]
[354706676,1740634239464,-1827.53,0.00046575,120]
[354706677,1740634239474,-500.0,0.00046575,120]
[354706678,1740634239483,-641.43,0.00046575,120]
[354706679,1740634239493,-500.0,0.00046575,120]
[354706680,1740634239502,-500.0,0.00046575,120]
[354706681,1740634239512,-1244.5,0.00046575,120]
[354706682,1740634239522,-1022.83,0.00046575,120]
[354706683,1740634239532,-500.0,0.00046575,120]
[354706684,1740634239541,-500.0,0.00046575,120]
[354706685,1740634239551,-2414.2,0.00046575,120]
[354706686,1740634239561,-1350.33,0.00046575,120]
[354706687,1740634239572,-500.0,0.00046575,120]
[354706688,1740634239582,-500.0,0.00046575,120]
[354706689,1740634239591,-500.0,0.00046575,120]
[354706690,1740634239600,-420.69164696,0.00046575,120]
[354706691,1740634239610,-500.0,0.00046575,120]
[354706692,1740634239620,-1208.45,0.00046575,120]
[354706693,1740634239632,-500.0,0.00046575,120]
[354706694,1740634239644,-500.0,0.00046575,120]
[354706695,1740634239654,-500.0,0.00046575,120]
[354706696,1740634239664,-1202.55,0.00046575,120]
[354706697,1740634239674,-500.0,0.00046575,120]
[354706698,1740634239684,-649.71,0.00046575,120]
[354706699,1740634239695,-500.0,0.00046575,120]
[354706700,1740634239706,-678.75,0.00046575,120]
[354706701,1740634239715,-914.63,0.00046575,120]
[354706702,1740634239726,-500.0,0.00046575,120]
[354706703,1740634239736,-500.0,0.00046575,120]
[354706704,1740634239746,-1064.44,0.00046575,120]
[354706705,1740634239756,-514.65,0.00046575,120]
[354706706,1740634239765,-628.82,0.00046575,120]
[354706707,1740634239775,-500.0,0.00046575,120]
[354706708,1740634239785,-500.0,0.00046575,120]
[354706709,1740634239794,-500.0,0.00046575,120]
[354706710,1740634239804,-500.0,0.00046575,120]
[354706711,1740634239814,-500.0,0.00046575,120]
[354706712,1740634239826,-500.0,0.00046575,120]
[354706713,1740634239838,-597.6,0.00046575,120]
[354706714,1740634239848,-1847.81,0.00046575,120]
[354706715,1740634239857,-2005.55,0.00046575,120]
[354706716,1740634239868,-500.0,0.00046575,120]
[354706717,1740634239878,-500.0,0.00046575,120]
[354706718,1740634239887,-500.0,0.00046575,120]
[354706719,1740634239897,-887.24,0.00046575,120]
[354706720,1740634239907,-766.99,0.00046575,120]
[354706721,1740634239917,-500.0,0.00046575,120]
[354706722,1740634239927,-500.0,0.00046575,120]
[354706723,1740634239937,-500.0,0.00046575,120]
[354706724,1740634239947,-670.73,0.00046575,120]
[354706725,1740634239957,-1586.19,0.00046575,120]
[354706726,1740634239966,-500.0,0.00046575,120]
[354706727,1740634239976,-500.0,0.00046575,120]
[354706728,1740634239985,-569.88,0.00046575,120]
[354706729,1740634239995,-501.09396162,0.00046575,120]
[354706730,1740634240005,-500.0,0.00046575,120]
[354706731,1740634240015,-681.29,0.00046575,120]
[354706732,1740634240024,-500.0,0.00046575,15]
[354706733,1740634240034,-500.0,0.00046575,120]
[354706734,1740634240045,-500.0,0.00046575,120]
[354706735,1740634240056,-511.59,0.00046575,120]
[354706736,1740634240065,-500.0,0.00046575,120]
[354706737,1740634240074,-661.44,0.00046575,120]
[354706738,1740634240085,-502.00862354,0.00046575,120]
[354706739,1740634240095,-500.0,0.00046575,120]
[354706740,1740634240107,-786.98,0.00046575,120]
[354706741,1740634240119,-500.0,0.00046575,120]
[354706742,1740634240129,-500.0,0.00046575,120]
[354706743,1740634240139,-500.0,0.00046575,120]
[354706744,1740634240150,-680.71,0.00046575,120]
[354706745,1740634240161,-970.03,0.00046575,120]
[354706746,1740634240171,-500.0,0.00046575,120]
[354706748,1740634240181,-500.0,0.00046575,120]
[354706750,1740634240190,-689.81,0.00046575,120]
[354706752,1740634240199,-200.0,0.00046575,120]
[354706753,1740634240208,-1129.73,0.00046575,120]
[354706754,1740634240218,-2173.28,0.00046575,120]
[354706755,1740634240228,-500.0,0.00046575,120]
[354706756,1740634240237,-650.37,0.00046575,120]
[354706757,1740634240247,-640.62,0.00046575,120]
[354706758,1740634240257,-545.55,0.00046575,120]
[354706759,1740634240266,-500.0,0.00046575,120]
[354706760,1740634240276,-989.96,0.00046575,120]
[354706761,1740634240286,-500.0,0.00046575,120]
[354706762,1740634240295,-500.0,0.00046575,120]
[354706763,1740634240305,-500.0,0.00046575,120]
[354706764,1740634240314,-500.0,0.00046575,120]
[354706765,1740634240325,-500.0,0.00046575,120]
[354706766,1740634240335,-500.0,0.00046575,120]
[354706767,1740634240345,-806.1,0.00046575,120]
[354706769,1740634240355,-355.00658866,0.00046575,120]
[354706770,1740634240364,-500.0,0.00046575,120]
[354706771,1740634240373,-500.0,0.00046575,45]
[354706772,1740634240382,-500.0,0.00046575,120]
[354706773,1740634240396,-566.56,0.00046575,120]
[354706774,1740634240405,-500.0,0.00046575,120]
[354706775,1740634240415,-500.0,0.00046575,120]
[354706776,1740634240424,-500.0,0.00046575,120]
[354706777,1740634240433,-500.0,0.00046575,120]
[354706778,1740634240443,-887.06,0.00046575,120]
[354706779,1740634240452,-500.0,0.00046575,120]
[354706780,1740634240462,-198.29143575,0.00046575,120]
[354706781,1740634240471,-500.0,0.00046575,120]
[354706782,1740634240480,-278.37728601,0.00046575,120]
[354706783,1740634240491,-1058.24,0.00046575,120]
[354706784,1740634240501,-500.0,0.00046575,120]
[354706785,1740634240511,-500.0,0.00046575,120]
[354706786,1740634240521,-5695.28,0.00046575,120]
[354706787,1740634240530,-500.0,0.00046575,120]
[354706788,1740634240540,-500.0,0.00046575,120]
[354706789,1740634240549,-500.0,0.00046575,120]
[354706790,1740634240559,-500.0,0.00046575,120]
[354706791,1740634240568,-500.0,0.00046575,120]
[354706792,1740634240578,-516.57,0.00046575,120]
[354706793,1740634240587,-1447.83,0.00046575,120]
[354706794,1740634240597,-512.1,0.00046575,120]
[354706795,1740634240606,-500.0,0.00046575,120]
[354706796,1740634240615,-1766.38,0.00046575,120]
[354706797,1740634240625,-500.0,0.00046575,120]
[354706798,1740634240634,-577.72,0.00046575,120]
[354706799,1740634240644,-2321.04,0.00046575,120]
[354706800,1740634240653,-977.28,0.00046575,120]
[354706801,1740634240662,-580.0,0.00046575,120]
[354706802,1740634240672,-23037.48,0.00046575,120]
[354706803,1740634240681,-1000.0,0.00046575,120]
[354706804,1740634240691,-1453.91,0.00046575,120]
[354706805,1740634240700,-500.0,0.00046575,120]
[354706806,1740634240709,-568.89546712,0.00046575,120]
[354706807,1740634240718,-829.84,0.00046575,120]
[354706808,1740634240728,-2118.49,0.00046575,120]
[354706809,1740634240738,-500.0,0.00046575,120]
[354706810,1740634240747,-1814.73,0.00046575,120]
[354706811,1740634240756,-500.0,0.00046575,120]
[354706812,1740634240770,-511.94,0.00046575,30]
[354706813,1740634240780,-6995.69,0.00046575,120]
[354706814,1740634240789,-500.0,0.00046575,120]
[354706816,1740634240799,-596.45,0.00046575,120]
[354706818,1740634240808,-500.0,0.00046575,120]
[354706820,1740634240817,-500.0,0.00046575,120]
[354706821,1740634240827,-500.0,0.00046575,14]
[354706822,1740634240838,-1066.16,0.00046575,120]
[354706823,1740634240848,-500.0,0.00046575,120]
[354706824,1740634240858,-624.92639399,0.00046575,120]
[354706825,1740634240867,-500.0,0.00046575,120]
[354706826,1740634240877,-2680.82,0.00046575,120]
[354706827,1740634240887,-500.0,0.00046575,120]
[354706828,1740634240896,-796.02,0.00046575,120]
[354706829,1740634240907,-500.0,0.00046575,120]
[354706830,1740634240916,-1061.21,0.00046575,120]
[354706831,1740634240925,-500.0,0.00046575,30]
[354706832,1740634240935,-1179.36,0.00046575,120]
[354706833,1740634240944,-1548.81,0.00046575,120]
[354706834,1740634240953,-500.0,0.00046575,120]
[354706835,1740634240963,-3309.63,0.00046575,120]
[354706836,1740634240972,-740.79,0.00046575,120]
[354706837,1740634240981,-500.0,0.00046575,120]
[354706838,1740634240991,-656.07,0.00046575,120]
[354706839,1740634241001,-8566.13,0.00046575,3]
[354706840,1740634241011,-500.0,0.00046575,120]
[354706841,1740634241020,-500.0,0.00046575,120]
[354706842,1740634241029,-500.0,0.00046575,120]
[354706843,1740634241039,-500.0,0.00046575,120]
[354706844,1740634241049,-4972.88,0.00046575,120]
[354706845,1740634241059,-104525.25,0.00046575,7]
[354706846,1740634241069,-500.0,0.00046575,120]
[354706847,1740634241079,-553.35952589,0.00046575,120]
[354706848,1740634241089,-500.0,0.00046575,120]
[354706849,1740634241099,-526.12,0.00046575,120]
[354706850,1740634241110,-3556.46,0.00046575,120]
[354706851,1740634241120,-500.0,0.00046575,120]
[354706852,1740634241129,-500.0,0.00046575,120]
[354706853,1740634241139,-1041.17,0.00046575,120]
[354706854,1740634241148,-1000.0,0.00046575,2]
[354706855,1740634241158,-500.0,0.00046575,120]
[354706856,1740634241168,-500.0,0.00046575,120]
[354706857,1740634241179,-500.0,0.00046575,120]
[354706858,1740634241188,-643.48,0.00046575,120]
[354706859,1740634241198,-506.88242551,0.00046575,120]
[354706860,1740634241208,-1484.96,0.00046575,120]
[354706861,1740634241218,-651.96,0.00046575,120]
[354706862,1740634241227,-1945.39,0.00046575,120]
[354706863,1740634241236,-500.0,0.00046575,120]
[354706864,1740634241246,-500.0,0.00046575,120]
[354706865,1740634241255,-540.63249423,0.00046575,120]
[354706866,1740634241264,-1171.41,0.00046575,120]
[354706867,1740634241273,-500.0,0.00046575,120]
[354706868,1740634241282,-323.80122035,0.00046575,120]
[354706869,1740634241292,-1203.81,0.00046575,120]
[354706870,1740634241301,-4723.09,0.00046575,120]
[354706871,1740634241310,-564.27,0.00046575,120]
[354706872,1740634241320,-634.18,0.00046575,120]
[354706873,1740634241329,-500.0,0.00046575,120]
[354706874,1740634241339,-1104.5,0.00046575,120]
[354706875,1740634241348,-2835.99,0.00046575,120]
[354706876,1740634241357,-500.0,0.00046575,120]
[354706877,1740634241366,-500.0,0.00046575,120]
[354706878,1740634241376,-500.0,0.00046575,120]
[354706879,1740634241385,-500.0,0.00046575,120]
[354706880,1740634241394,-788.14,0.00046575,120]
[354706881,1740634241403,-2102.62,0.00046575,120]
[354706882,1740634241413,-500.0,0.00046575,21]
[354706883,1740634241422,-351.37715922,0.00046575,120]
[354706884,1740634241432,-500.0,0.00046575,120]
[354706885,1740634241441,-6654.7,0.00046575,120]
[354706886,1740634241450,-1569.41,0.00046575,120]
[354706887,1740634241459,-500.0,0.00046575,120]
[354706888,1740634241469,-1194.2,0.00046575,120]
[354706889,1740634241478,-3089.67,0.00046575,120]
[354706890,1740634241487,-1402.39,0.00046575,120]
[354706891,1740634241496,-516.47,0.00046575,120]
[354706892,1740634241506,-2323.35,0.00046575,120]
[354706893,1740634241515,-741.33,0.00046575,120]
[354706894,1740634241524,-1447.13,0.00046575,120]
[354706895,1740634241533,-500.0,0.00046575,120]
[354706896,1740634241542,-500.0,0.00046575,120]
[354706897,1740634241551,-27707.49,0.00046575,120]
[354706898,1740634241560,-666.09,0.00046575,120]
[354706899,1740634241569,-674.82,0.00046575,120]
[354706900,1740634241579,-628.81,0.00046575,120]
[354706901,1740634241588,-573.94,0.00046575,120]
[354706902,1740634241597,-500.0,0.00046575,120]
[354706903,1740634241606,-502.8161129,0.00046575,120]
[354706904,1740634241615,-500.0,0.00046575,120]
[354706905,1740634241625,-3095.55,0.00046575,120]
[354706906,1740634241634,-500.0,0.00046575,120]
[354706907,1740634241643,-500.0,0.00046575,120]
[354706908,1740634241826,-500.0,0.00046575,120]
[354706909,1740634241836,-500.0,0.00046575,120]
[354706910,1740634241846,-500.0,0.00046575,120]
[354706911,1740634241857,-500.0,0.00046575,30]
[354706912,1740634241867,-500.0,0.00046575,120]
[354706913,1740634241877,-582.2,0.00046575,120]
[354706914,1740634241886,-5707.09,0.00046575,120]
[354706915,1740634241897,-2676.14,0.00046575,120]
[354706916,1740634241907,-459.42573492,0.00046575,120]
[354706917,1740634241916,-500.0,0.00046575,120]
[354706918,1740634241928,-876.79,0.00046575,120]
[354706919,1740634241937,-500.0,0.00046575,120]
[354706920,1740634241946,-8357.17,0.00046575,120]
[354706921,1740634241956,-20916.64,0.00046575,6]
[354706922,1740634241965,-500.0,0.00046575,120]
[354706923,1740634241974,-13255.69,0.00046575,120]
[354706924,1740634241984,-606.25,0.00046575,120]
[354706925,1740634241993,-5000.0,0.00046575,120]
[354706926,1740634242002,-5000.0,0.00046575,120]
[354706927,1740634242011,-5000.0,0.00046575,120]
[354706928,1740634242021,-5000.0,0.00046575,120]
[354706929,1740634242030,-5000.0,0.00046575,120]
[354706930,1740634242040,-5000.0,0.00046575,120]